Cogmind - Beta 15 @@@ ROGUE MODE // 2025.07.31 @ 20:17:00 Player: Bbenedict8 Result: Self-destructed Performance ------------- Evolutions (7) 3500 Regions Visited (16) 3200 Robots Destroyed (208) 1040 Value Destroyed (8436) 8436 Prototype IDs (32) 640 Alien Tech Used (0) 0 Bonus (530) 530 TOTAL SCORE: 17346 Bonus ------- Follower Combat Kills 330 Network Hubs Disabled 200 Cogmind --------- Core Integrity 1154/1300 Matter 174/300 Energy 28/365 System Corruption 22% Temperature Warning (377) Movement Walking (265) Ox2 Location -3/Research Parts ------- > --- POWER (2) -------- Neutrino Core Micro Antimatter Reactor > --- PROPULSION (7) --- Improved VSS Leg Myomer Leg > --- UTILITY (8) ------ Advanced Heat Sink Medium Storage Unit Enhanced Optical Array Advanced Target Analyzer Advanced Reaction Control System Improved Force Field > --- WEAPON (4) ------- Long-range Phase Cannon Heavy Gauss Cannon Heavy Gauss Cannon > --- INVENTORY (10) --- Advanced Heat Sink Cooling System Medium Storage Unit Advanced Targeting Computer Improved Particle Charger Experimental Thermal Defense Suite Long-range Tractor Beam Gamma Rifle Dispersion Rifle Chainsword Peak State ------------ > --- POWER ------------ Neutrino Core Micro Antimatter Reactor > --- PROPULSION ------- Carbon-fiber Leg Flexi-carbon Leg Flexi-carbon Leg Armored Leg Improved VSS Leg Myomer Leg > --- UTILITY ---------- Advanced Heat Sink Medium Storage Unit Enhanced Optical Array Advanced Target Analyzer Advanced Reaction Control System Layered Medium Armor Plating Experimental Thermal Defense Suite Improved Force Field > --- WEAPON ----------- Gamma Rifle Quantum Rifle Heavy Gauss Cannon Heavy Gauss Cannon > --- INVENTORY -------- Cooling System Medium Storage Unit Advanced Targeting Computer Improved Particle Charger Long-range Tractor Beam Phase Gun Dispersion Rifle Matter Neutralizer Powered Hammer [Rating: 124] Favorites ----------- Power Neutrino Core Engine Improved Deuterium Engine Power Core Neutrino Core Reactor Quantum Reactor Propulsion Aluminum Leg Treads Light Treads Leg Aluminum Leg Hover Unit Gravmag System Flight Unit Improved Diametric Drive Utility Medium Storage Unit Device Improved Cooling System Storage Medium Storage Unit Processor Advanced Targeting Computer Protection Improved Medium Armor Plating Weapon Gatling Laser Energy Gun Gatling Laser Energy Cannon Cooled Particle Cannon Ballistic Gun KE Penetrator Ballistic Cannon Heavy Gauss Cannon Launcher Mini Grenade Launcher Impact Weapon Powered Hammer Slashing Weapon Chainsword Special Melee Weapon Datajack Build | -11 -10 -9 -8 -7 -7 -7 -6 -6 -6 -6 -6 -5 -5 -5 -4 -3 ------- Run | Yrd Mat Mat Mat Fac Low Low Fac Ext Cet Arc Hub Fac Upp Upp Fac Res Slots Evolved 14 | . . 2 2 2 . . 2 . . . . 2 . . 2 2 Power 1 | . . . . . . . . . . . . . . . . 1 Propulsion 5 | . . 1 1 . . . 1 . . . . . . . 1 1 Utility 6 | . . 1 . 2 . . . . . . . 2 . . 1 . Weapon 2 | . . . 1 . . . 1 . . . . . . . . . Parts Attached 181 | 7 21 25 14 23 . . 8 17 7 3 5 22 2 3 6 18 Power 22 | 1 2 5 . 4 . . 1 2 1 . . 3 . . 1 2 Engine 13 | 1 2 5 . 4 . . . 1 . . . . . . . . Core 5 | . . . . . . . 1 1 . . . 2 . . . 1 Reactor 4 | . . . . . . . . . 1 . . 1 . . 1 1 Propulsion 53 | 2 6 9 6 3 . . 1 6 3 2 1 7 1 2 3 1 Treads 6 | . . . . . . . . . 3 2 1 . . . . . Leg 44 | 2 6 9 6 3 . . 1 4 . . . 7 1 2 3 . Wheel . | . . . . . . . . . . . . . . . . . Hover 2 | . . . . . . . . 2 . . . . . . . . Flight 1 | . . . . . . . . . . . . . . . . 1 Utility 49 | 2 4 4 4 7 . . 3 3 2 . 2 8 1 . 1 8 Device 24 | . 3 2 1 3 . . 2 . . . . 5 1 . 1 6 Storage 9 | 2 1 . 1 2 . . . 1 . . . 1 . . . 1 Processor 7 | . . 1 1 . . . 1 1 . . 1 1 . . . 1 Hackware . | . . . . . . . . . . . . . . . . . Protection 9 | . . 1 1 2 . . . 1 2 . 1 1 . . . . Artifact . | . . . . . . . . . . . . . . . . . Weapon 57 | 2 9 7 4 9 . . 3 6 1 1 2 4 . 1 1 7 Energy Gun 36 | 2 8 3 3 6 . . . 4 1 1 1 3 . . 1 3 Energy Cannon 12 | . . 3 1 2 . . 1 2 . . . 1 . 1 . 1 Ballistic Gun 1 | . . . . . . . . . . . 1 . . . . . Ballistic Cannon 3 | . . 1 . . . . . . . . . . . . . 2 Launcher 2 | . . . . 1 . . 1 . . . . . . . . . Special Weapon . | . . . . . . . . . . . . . . . . . Impact Weapon 1 | . . . . . . . 1 . . . . . . . . . Slashing Weapon 1 | . . . . . . . . . . . . . . . . 1 Piercing Weapon . | . . . . . . . . . . . . . . . . . Special Melee Weapon 1 | . 1 . . . . . . . . . . . . . . . Unidentified Prototypes 19 | . . 2 1 5 . . 2 . 3 . . 3 . . . 3 Parts Lost 58 | . 6 4 6 3 1 . 1 1 4 1 2 11 5 . 1 12 Power 6 | . 2 1 . . . . . . . . . 2 . . . 1 Propulsion 20 | . . 2 1 2 . . 1 1 2 1 . 4 2 . . 4 Utility 15 | . . . 3 1 1 . . . . . 1 3 1 . . 5 Weapon 17 | . 4 1 2 . . . . . 2 . 1 2 2 . 1 2 Highest Loss Streak 6 | . 2 2 2 1 1 . 1 1 3 1 2 5 2 . 1 6 To Critical Strikes 3 | . . . . . . . . . 2 . . 1 . . . . Average Backups 9 | 1 7 9 9 9 9 9 9 9 10 9 9 9 9 10 9 9 Power . | . . . 1 1 1 1 1 1 1 1 1 . 1 1 1 . Propulsion . | . 1 1 1 . . . . . 1 1 . 1 1 1 . . Utility 3 | . 2 3 5 3 3 3 4 4 4 4 3 2 3 4 4 5 Weapon 3 | . 3 2 1 4 5 5 4 4 4 3 3 4 3 3 3 3 Tool/Special . | . . . . . . . . . . . . . . . . . Unused Backups 29 | 1 4 5 2 3 . . 2 1 2 . 1 1 . 2 . 5 Power 4 | . 1 . . . . . 1 . 1 . . . . 1 . . Propulsion 3 | . 1 . . . . . . 1 . . . . . 1 . . Utility 12 | 1 1 1 2 1 . . 1 . 1 . 1 . . . . 3 Weapon 10 | . 1 4 . 2 . . . . . . . 1 . . . 2 Tool/Special . | . . . . . . . . . . . . . . . . . Average Slot Usage (%) 94 | . 98 99 97 97 99 100 93 96 91 89 89 95 85 90 93 89 Engine 4 | . 13 11 9 7 7 7 . . . . . . . . . . Core 1 | . . . . . . . 5 5 1 . . . 5 5 3 3 Reactor 1 | . . . . . . . . . 4 6 6 4 . . 1 3 Treads 3 | . . . . . . . . . 13 19 24 11 . . . . Leg 24 | . 28 32 35 27 30 30 27 27 11 4 . 14 22 25 31 27 Device 14 | . 10 15 10 14 14 15 12 13 13 13 11 15 13 17 20 19 Storage 7 | . 14 11 9 7 7 7 6 6 6 6 6 5 5 5 5 4 Processor 6 | . . 3 6 7 7 7 6 6 6 6 6 10 7 5 5 6 Protection 4 | . 3 3 . 7 7 7 6 6 5 6 6 4 5 5 5 3 Energy Gun 12 | . 26 8 17 14 15 15 12 13 17 18 13 11 5 5 5 6 Energy Cannon 6 | . . 8 8 4 7 7 6 11 7 6 6 6 5 5 5 1 Impact Weapon 1 | . . . . . . . 4 1 . . . . 5 5 5 . Peak Build Rating 124 | 7 9 19 30 46 45 43 58 69 87 83 79 92 86 80 98 124 Average Rating 54 | 5 7 14 25 39 42 43 53 60 77 80 77 81 74 77 90 111 On Entrance 52 | . 6 7 19 27 45 43 43 55 69 78 78 79 86 75 80 96 Naked Turns . | . . . . . . . . . . . . . . . . . Heaviest Build 98 | 12 20 34 37 47 47 45 51 56 63 63 65 71 67 62 72 98 Greatest Support 123 | 20 20 30 55 57 57 57 77 92 120 123 123 86 86 81 111 111 Greatest Overweight (x) 1 | 1 . 1 . 1 . . . 1 1 . 1 1 1 . . 1 Average Overweight (x) . | . . . . . . . . . . . . . . . . . Largest Inventory Capacity 25 | 8 10 10 25 20 10 10 10 10 10 10 10 10 10 10 10 10 Average Capacity 9 | 7 9 10 10 10 10 10 10 10 10 10 10 10 10 10 10 10 Most Carried 10 | 3 10 10 10 10 10 9 10 10 10 10 10 10 10 10 10 10 Average Carried 9 | 1 8 9 9 9 9 9 9 9 9 9 9 9 9 9 9 9 Final Capacity 10 | 8 10 10 10 10 10 10 10 10 10 10 10 10 10 10 10 10 Final Carried 10 | 3 9 10 10 10 9 9 10 10 10 10 9 10 10 10 10 10 Class Distribution -------------------- 29% | Scavenger-Tank 18% | Scavenger-Gunner 18% | Gunner 12% | Mutant 10% | Tank 9% | Scavenger-Mutant Dominant Class ---------------- Mutant | -10/Materials Scavenger-Mutant | -9/Materials Gunner | -8/Materials Gunner | -7/Factory Scavenger-Gunner | -7/Lower Caves Scavenger-Gunner | -7/Lower Caves Gunner | -6/Factory Tank | -6/Extension Scavenger-Tank | -6/Cetus Scavenger-Tank | -6/Archives Scavenger-Tank | -6/Hub_04(d) Scavenger-Gunner | -5/Factory Tank | -5/Upper Caves Scavenger-Tank | -5/Upper Caves Scavenger-Tank | -4/Factory Scavenger-Tank | -3/Research Resources | -11 -10 -9 -8 -7 -7 -7 -6 -6 -6 -6 -6 -5 -5 -5 -4 -3 ----------- Run | Yrd Mat Mat Mat Fac Low Low Fac Ext Cet Arc Hub Fac Upp Upp Fac Res Matter Collected 3429 | 312 296 472 165 305 55 . . 311 70 23 113 539 153 50 100 465 Remotely . | . . . . . . . . . . . . . . . . . Salvage Created 9398 | 144 1048 1256 1086 897 414 . 117 943 482 284 267 1053 580 . 292 535 Parts 414 | 8 52 60 48 29 9 . 10 41 14 5 18 54 12 . 12 42 Haulers Intercepted 6 | . 2 3 . 1 . . . . . . . . . . . . Recyclers Shooed 6 | . 2 . . . . . . 1 . . 1 2 . . . . Parts Field Recycled . | . . . . . . . . . . . . . . . . . Retrieved Matter . | . . . . . . . . . . . . . . . . . Parts Self-Destructed 34 | . . . . . 10 . . . . . . . 20 4 . . Prevented 1 | . . . . . . . . . . . . . 1 . . . Kills | -11 -10 -9 -8 -7 -7 -7 -6 -6 -6 -6 -6 -5 -5 -5 -4 -3 ------- Run | Yrd Mat Mat Mat Fac Low Low Fac Ext Cet Arc Hub Fac Upp Upp Fac Res Combat Hostiles Destroyed 167 | . 21 20 22 20 5 . 4 14 7 4 7 19 9 . 8 7 Melee 2 | . . . . . . . . . . . . . . . . 2 Guns 72 | . 18 2 11 13 4 . 2 5 3 1 5 6 . . 2 . Cannons 50 | . . 16 7 2 1 . 2 8 1 1 . 6 2 . . 4 AOE 24 | . 2 2 1 3 . . . . . . . 5 6 . 5 . Classes Destroyed 16 | 3 4 2 2 3 . . . . . . . . 2 . . . Worker 7 | 1 . 2 1 . . . . . . . 1 1 . . . 1 Builder 8 | . 2 1 . . . . . 2 . . 1 . . . . 2 Tunneler 2 | 2 . . . . . . . . . . . . . . . . Hauler 6 | . 2 3 . 1 . . . . . . . . . . . . Recycler 10 | 1 2 3 1 . . . . 1 . . . 1 . . . 1 Mechanic 1 | . . . 1 . . . . . . . . . . . . . Operator 2 | . . . . 1 . . . . . . . . . . . 1 Watcher 5 | . . 1 1 . . . . 2 . . . 1 . . . . Swarmer 34 | . 3 . 6 3 . . 3 3 . . 4 5 2 . 5 . Grunt 68 | . 18 15 10 8 3 . . 1 3 . . 3 4 . 3 . Brawler 2 | . . . . 1 1 . . . . . . . . . . . Sentry 29 | . . 5 5 3 1 . . 7 . 4 2 1 1 . . . Hunter 6 | . . . 1 1 . . . . . . . 2 . . . 2 Programmer 21 | . . . . 4 . . 1 2 . . 1 8 . . . 5 Behemoth 1 | . . . . . . . . . . . . . 1 . . . Cetus Guard 4 | . . . . . . . . . 4 . . . . . . . Packrat 3 | . . . . . . . . . . . . . 3 . . . Thug 1 | . . . . . . . . 1 . . . . . . . . Mutant 1 | . . . . . . . . . . . . . 1 . . . Best Kill Streak 5 | 1 4 5 5 4 5 . 3 4 4 2 4 5 4 . 5 3 Combat Bots Only 5 | . 4 3 4 4 5 . 3 3 4 2 4 5 4 . 5 2 Max Kills in Single Turn 5 | 1 2 2 2 1 1 . 1 2 1 1 1 2 3 . 5 1 Gunslinging . | . . . . . . . . . . . . . . . . . Exploded 5 | . 1 1 1 1 . . . . . . . 2 2 . 5 . Melee 1 | . . . . . . . . . . . . . . . . 1 Uniques/NPCs Destroyed . | . . . . . . . . . . . . . . . . . Combat | -11 -10 -9 -8 -7 -7 -7 -6 -6 -6 -6 -6 -5 -5 -5 -4 -3 -------- Run | Yrd Mat Mat Mat Fac Low Low Fac Ext Cet Arc Hub Fac Upp Upp Fac Res Hostile Shots Fired 1186 | . 89 104 105 117 14 . 12 161 52 23 71 133 73 . 35 197 Missed 383 | . 24 27 36 53 4 . 2 81 8 7 16 29 29 . 8 59 Hits 803 | . 65 77 69 64 10 . 10 80 44 16 55 104 44 . 27 138 Projectile 803 | . 65 77 69 64 10 . 10 80 44 16 55 104 44 . 27 138 AOE 2 | . . . 1 . . . . . . . . 1 . . . . Critical Strikes 30 | . . . 2 2 . . . . 7 1 . 9 1 . 2 6 Part Disruptions 1 | . . . 1 . . . . . . . . . . . . . Damage Taken 12610 | . 902 1063 1052 862 160 . 218 782 870 329 700 2103 704 . 519 2346 Core 1010 | . 142 108 108 61 18 . 16 152 76 . 56 63 20 . 44 146 Absorbed by Shields 402 | . . . . 17 . . . 25 . . . . . . . 360 Reduced by Siege Mode 15 | . . . . . . . . . 15 . . . . . . . Ignored by Resistances 327 | . . . . . . . . 95 149 53 30 . . . . . Core Remaining (%) 79 | 100 43 73 80 . . 88 . . . . 64 . . 91 96 . Volleys Fired 591 | 7 82 88 67 62 8 . 7 69 28 13 24 67 17 1 8 43 Largest 4 | 2 2 2 3 3 3 . 3 4 4 4 4 4 3 2 3 4 Hottest 335 | 90 115 133 193 188 230 . 130 230 275 335 335 265 175 185 223 310 Shots Fired 1270 | 14 154 170 154 135 24 . 17 130 49 38 62 166 40 2 17 98 Gun 782 | 14 154 54 89 95 16 . 11 64 27 28 58 121 15 1 7 28 Cannon 474 | . . 116 65 37 8 . 6 66 22 10 4 42 20 1 7 70 Launcher 14 | . . . . 3 . . . . . . . 3 5 . 3 . Special . | . . . . . . . . . . . . . . . . . Kinetic 153 | . . 42 . . . . . . . . 13 46 . . . 52 Thermal 947 | 7 114 103 127 129 24 . 17 95 49 38 49 114 29 2 14 36 Explosive 14 | . . . . 3 . . . . . . . 3 5 . 3 . Electromagnetic 156 | 7 40 25 27 3 . . . 35 . . . 3 6 . . 10 Robot Hit Streak 34 | 5 12 12 17 10 10 . 7 19 17 33 34 17 10 5 3 8 Robot Miss Streak 6 | . 5 4 4 3 3 . 3 3 2 2 5 3 2 2 3 6 Penetration Max 1 | . . . . . . . . . . . 1 1 . . . . Secondary Targets 1 | . 1 . . . . . . . . . . . . . . . Max Gunslinging Chain 1 | . 1 . . . . . . . . . . . . . . . Shots Hit Robots 767 | 5 94 107 92 88 14 . 11 67 35 31 31 109 25 2 6 50 Core Hits 390 | 4 44 42 38 45 17 . 7 40 16 14 18 36 37 1 12 19 Critical Kills 11 | . . . 2 1 . . . 1 2 . 1 2 1 . 1 . Critical Parts Destroyed 2 | . . . . . . . . . . . 1 1 . . . . Critical Strikes 42 | . 7 3 2 4 . . . 3 6 1 2 4 1 . 2 7 Burn 18 | . 6 1 . 3 . . . 2 4 1 . . . . 1 . Meltdown 10 | . . . 2 1 . . . 1 2 . 1 1 1 . 1 . Destroy 4 | . . . . . . . . . . . 1 3 . . . . Blast 7 | . . 2 . . . . . . . . . . . . . 5 Corrupt 2 | . 1 . . . . . . . . . . . . . . 1 Sever 1 | . . . . . . . . . . . . . . . . 1 Melee Attacks 22 | . 2 1 . . . . 1 . . . . 1 1 . 2 14 Impact 5 | . . . . . . . 1 . . . . 1 1 . 2 . Slashing 14 | . . . . . . . . . . . . . . . . 14 Piercing . | . . . . . . . . . . . . . . . . . Sneak Attacks 3 | . 1 1 . . . . . . . . . . . . . 1 Combat Hostiles . | . . . . . . . . . . . . . . . . . Follow-up Attacks . | . . . . . . . . . . . . . . . . . Damage Inflicted 20285 | 79 1603 2200 2044 2263 361 . 267 1767 887 809 889 3200 1330 48 670 1868 Guns 10238 | 79 1209 553 1023 1356 329 . 180 932 342 587 850 1915 344 11 131 397 Cannons 7083 | . . 1416 759 488 32 . 87 833 545 222 32 892 483 37 76 1181 Explosions 2670 | . 394 231 262 417 . . . . . . 7 393 503 . 463 . Melee 290 | . . . . . . . . . . . . . . . . 290 Ramming 4 | . . . . 2 . . . 2 . . . . . . . . Kinetic 2066 | . . 471 . . . . . . . . 150 613 . . . 832 Thermal 14324 | 26 1129 1394 1681 1942 361 . 267 1348 887 809 732 2168 708 48 207 617 Explosive 1827 | . 164 . . 304 . . . . . . . 393 503 . 463 . Electromagnetic 1774 | 53 310 335 363 15 . . . 417 . . 7 26 119 . . 129 Impact . | . . . . . . . . . . . . . . . . . Slashing 290 | . . . . . . . . . . . . . . . . 290 Piercing . | . . . . . . . . . . . . . . . . . Highest Corruption 21 | . . . . 2 2 2 . 1 1 1 4 6 2 2 . 21 Average Corruption 3 | . . . . 2 2 2 . 1 1 1 1 4 2 2 . 8 Corruption Purged 7 | . . . . . . . . . . . . 7 . . . . Corruption Blocked . | . . . . . . . . . . . . . . . . . Effects 75 | . . . . 2 1 . . 1 2 2 8 18 9 3 . 29 Message Errors 17 | . . . . . 1 . . . 1 . 3 5 1 1 . 5 Matter Fused 16 | . . . . . . . . . . 1 2 2 3 . . 8 Heat Flow Errors 7 | . . . . 1 . . . . . . 1 3 . . . 2 Energy Discharges 9 | . . . . . . . . . . . . 4 1 . . 4 Parts Rejected 3 | . . . . . . . . . . . . 1 . 1 . 1 Parts Fused 1 | . . . . . . . . . . . . . . 1 . . Data Loss (minor) 8 | . . . . . . . . . . . 1 2 2 . . 3 Data Loss (major) 4 | . . . . 1 . . . . . . . . . . . 3 Misfires 4 | . . . . . . . . . . . . 1 2 . . 1 Alerts 3 | . . . . . . . . 1 1 . 1 . . . . . Weapon Failures 3 | . . . . . . . . . . 1 . . . . . 2 Overload Shots 8 | . . . . . 4 . 1 2 . . . 1 . . . . Overflow Damage 200 | . . 43 6 69 . . . . . . . 45 23 . . 14 Projectiles 103 | . . 27 6 21 . . . . . . . 12 23 . . 14 Explosions 97 | . . 16 . 48 . . . . . . . 33 . . . . Melee . | . . . . . . . . . . . . . . . . . Knockbacks 10 | . . 2 . . . . . . . . . . . . . 8 Impact . | . . . . . . . . . . . . . . . . . Kinetic 10 | . . 2 . . . . . . . . . . . . . 8 Secondary . | . . . . . . . . . . . . . . . . . Self-Inflicted Damage 572 | . 153 65 127 . . . . . . . 92 135 . . . . Shots 13 | . 5 1 3 . . . . . . . 1 3 . . . . Rammed . | . . . . . . . . . . . . . . . . . Targets Rammed 2 | . . . . 1 . . . 1 . . . . . . . . Kicked 2 | . . . . 1 . . . 1 . . . . . . . . Crushed . | . . . . . . . . . . . . . . . . . Highest Temperature 506 | 60 339 201 278 250 105 . . 100 306 320 506 374 171 75 450 384 Average Temperature 97 | 25 82 49 79 61 47 . . 31 79 144 180 133 60 39 241 148 Received Heat Transfer 2412 | . 381 462 387 195 90 . . 174 153 54 48 228 147 . 93 . Effects 10 | . 1 . . . . . . . . 1 2 1 . . 1 4 Shutdowns 4 | . . . . . . . . . . . . . . . 1 3 Energy Bleed 4 | . 1 . . . . . . . . 1 . 1 . . . 1 Interference 1 | . . . . . . . . . . . 1 . . . . . Short Circuit 1 | . . . . . . . . . . . 1 . . . . . Siege Activations 1 | . . . . . . . . . 1 . . . . . . . Total Turns 24 | . . . . . . . . . 24 . . . . . . . Longest Duration 24 | . . . . . . . . . 24 . . . . . . . Martial Activations . | . . . . . . . . . . . . . . . . . Shielding Activations . | . . . . . . . . . . . . . . . . . Robots Disrupted . | . . . . . . . . . . . . . . . . . Combat Hostiles . | . . . . . . . . . . . . . . . . . Robots Corrupted 1 | . . . . . . . . . . . . . . . . 1 Combat Hostiles 1 | . . . . . . . . . . . . . . . . 1 Parts Fried 3 | . . 1 . . . . . . . . . . . . . 2 Impact Corruptions . | . . . . . . . . . . . . . . . . . Robots Melted 20 | . 2 . 3 3 . . . 1 3 2 2 2 1 . 1 . Combat Hostiles 18 | . 1 . 3 2 . . . 1 3 2 2 2 1 . 1 . Parts Melted 73 | . 3 1 9 12 . . . 8 6 11 2 15 6 . . . Heat Transferred 25678 | 74 3071 2482 2840 3450 660 . 472 2496 2187 1734 1396 2749 1080 62 333 592 Parts Sabotaged . | . . . . . . . . . . . . . . . . . Parts Stolen . | . . . . . . . . . . . . . . . . . Parts Stripped . | . . . . . . . . . . . . . . . . . Power Chain Reactions 7 | . 3 1 3 . . . . . . . . . . . . . Alert | -11 -10 -9 -8 -7 -7 -7 -6 -6 -6 -6 -6 -5 -5 -5 -4 -3 ------- Run | Yrd Mat Mat Mat Fac Low Low Fac Ext Cet Arc Hub Fac Upp Upp Fac Res Maximum Alert Level 1 | . 1 1 1 1 . . . . . . . 1 . . . . Low Security (%) 87 | 100 89 96 24 67 . . 100 100 100 100 100 99 . . 100 100 Level 1 12 | . 10 3 75 32 . . . . . . . . . . . . Level 2 . | . . . . . . . . . . . . . . . . . Level 3 . | . . . . . . . . . . . . . . . . . Level 4 . | . . . . . . . . . . . . . . . . . Level 5 . | . . . . . . . . . . . . . . . . . High Security . | . . . . . . . . . . . . . . . . . Max Security . | . . . . . . . . . . . . . . . . . Peak Influence 370 | 5 293 217 370 247 . . 63 177 118 41 134 203 . . 190 103 Initial 162 | . . 120 57 162 . . 32 . 84 6 4 53 . . . 94 Average 88 | 1 125 88 227 174 . . 12 42 57 15 23 54 . . 29 40 Influence Increases 6015 | 20 735 733 753 705 130 . 118 644 163 96 311 589 316 35 274 393 Destroy 0b10 Robot/C 3540 | . 420 400 440 400 100 . 80 380 140 80 140 380 260 20 160 140 Destroy 0b10 Robot/NC 215 | 20 30 50 20 10 5 . . 30 . . 10 15 . . . 25 Destroy Leader 724 | . 94 108 112 102 10 . 20 56 10 . 40 82 30 10 20 30 Allied During Kill 70 | . . . . . . . . 36 3 . . . 26 5 . . Trap Triggered on 0b10 20 | . . . . 20 . . . . . . . . . . . . Successful Hack 221 | . 17 56 29 9 . . . 92 8 . . 10 . . . . Select Force Hacks 60 | . 30 . . 30 . . . . . . . . . . . . Disable Machine 330 | . 30 45 75 30 . . 15 15 . 15 30 30 . . 30 15 Destroy Structure 460 | . 39 44 32 29 . . 3 5 2 1 91 72 . . 64 78 Lose Combat Pursuer 375 | . 75 30 45 75 15 . . 30 . . . . . . . 105 Influence Decreases 6015 | 20 448 883 532 848 280 13 170 494 296 98 216 517 426 107 94 573 Entered New Map 870 | . . 167 80 196 80 13 20 . 66 11 11 57 68 15 . 86 Time Decay 4320 | 20 388 546 392 622 190 . 140 384 170 77 194 384 292 52 84 385 Lost Part 475 | . 60 20 60 30 10 . 10 10 40 10 11 76 26 . 10 102 Lost Ally 200 | . . . . . . . . 100 20 . . . 40 40 . . Purge Threat 150 | . . 150 . . . . . . . . . . . . . . Squads Dispatched 32 | . 5 3 3 6 . . 2 2 1 . 1 4 . . . 5 Investigation 13 | . 4 2 . 2 . . 1 2 1 . . . . . . 1 Extermination 11 | . . . . 3 . . 1 . . . 1 3 . . . 3 Reinforcement 8 | . 1 1 3 1 . . . . . . . 1 . . . 1 Assault . | . . . . . . . . . . . . . . . . . Garrison . | . . . . . . . . . . . . . . . . . Intercept . | . . . . . . . . . . . . . . . . . Searches Triggered . | . . . . . . . . . . . . . . . . . Construction Impeded . | . . . . . . . . . . . . . . . . . Haulers Reinforced . | . . . . . . . . . . . . . . . . . Active Scanning Responses . | . . . . . . . . . . . . . . . . . Cargo Convoy Interrupts . | . . . . . . . . . . . . . . . . . Stealth | -11 -10 -9 -8 -7 -7 -7 -6 -6 -6 -6 -6 -5 -5 -5 -4 -3 --------- Run | Yrd Mat Mat Mat Fac Low Low Fac Ext Cet Arc Hub Fac Upp Upp Fac Res Distress Signals 9 | . . 2 3 1 . . . 1 2 . . . . . . . Communications Jammed . | . . . . . . . . . . . . . . . . . Distress Signals . | . . . . . . . . . . . . . . . . . Times Spotted 235 | . 25 25 37 32 6 . 6 22 9 6 7 25 13 2 10 10 Peak Tracking Total 8 | . 5 4 8 5 6 . 3 3 5 2 4 5 5 2 6 5 Tactical Retreats 16 | . 3 2 3 3 1 . . 2 . . . . . . . 2 Traps | -11 -10 -9 -8 -7 -7 -7 -6 -6 -6 -6 -6 -5 -5 -5 -4 -3 ------- Run | Yrd Mat Mat Mat Fac Low Low Fac Ext Cet Arc Hub Fac Upp Upp Fac Res Traps Triggered 12 | . 3 1 . 1 . . 1 4 . . . 1 . . . 1 Indirectly . | . . . . . . . . . . . . . . . . . Trap Hack Attempts . | . . . . . . . . . . . . . . . . . Triggered . | . . . . . . . . . . . . . . . . . Disarmed . | . . . . . . . . . . . . . . . . . Reprogrammed 6 | . . . . 6 . . . . . . . . . . . . Reused 2 | . . . . 2 . . . . . . . . . . . . Traps Extracted . | . . . . . . . . . . . . . . . . . Installed . | . . . . . . . . . . . . . . . . . Triggered 2 | . . . . 2 . . . . . . . . . . . . Machines | -11 -10 -9 -8 -7 -7 -7 -6 -6 -6 -6 -6 -5 -5 -5 -4 -3 ---------- Run | Yrd Mat Mat Mat Fac Low Low Fac Ext Cet Arc Hub Fac Upp Upp Fac Res Machines Disabled 24 | . 2 3 5 2 . . 1 2 . 1 2 2 1 . 2 1 Max in Single Turn 2 | . 2 2 1 1 . . 1 1 . 1 2 2 1 . 1 1 Garrison Access 2 | . . . 1 1 . . . . . . . . . . . . Network Hub 1 | . . . . . . . . . . . 1 . . . . . Machines Repaired . | . . . . . . . . . . . . . . . . . Machines Dismantled . | . . . . . . . . . . . . . . . . . Machines Sabotaged . | . . . . . . . . . . . . . . . . . Overloaded Fab Kills . | . . . . . . . . . . . . . . . . . Hacking | -11 -10 -9 -8 -7 -7 -7 -6 -6 -6 -6 -6 -5 -5 -5 -4 -3 --------- Run | Yrd Mat Mat Mat Fac Low Low Fac Ext Cet Arc Hub Fac Upp Upp Fac Res Machines Accessed 62 | . 5 10 5 10 . . 2 19 3 . 2 2 . 1 2 1 Terminals 48 | . 3 6 4 6 . . 2 18 3 . 2 2 . . 1 1 Fabricators 3 | . . . . 2 . . . . . . . . . . 1 . Repair Stations 3 | . 1 1 . . . . . 1 . . . . . . . . Recycling Units 3 | . 1 1 . 1 . . . . . . . . . . . . Scanalyzers 2 | . . 2 . . . . . . . . . . . . . . Garrison Access 2 | . . . 1 1 . . . . . . . . . . . . Total Hacks 140 | . 14 25 16 21 . . 5 36 8 . 7 3 . 1 3 1 Successful 63 | . 7 15 11 9 . . 1 13 1 . 2 3 . 1 . . Failed 77 | . 7 10 5 12 . . 4 23 7 . 5 . . . 3 1 Catastrophic 14 | . . 2 1 1 . . 2 4 2 . . . . . 1 1 Database Lockouts . | . . . . . . . . . . . . . . . . . Manual 17 | . 1 7 2 6 . . . . 1 . . . . . . . Terminals 117 | . 11 16 15 15 . . 5 34 8 . 7 3 . . 2 1 Fabricators 3 | . . . . 2 . . . . . . . . . . 1 . Repair Stations 7 | . 2 3 . . . . . 2 . . . . . . . . Recycling Units 5 | . 1 1 . 3 . . . . . . . . . . . . Scanalyzers 5 | . . 5 . . . . . . . . . . . . . . Garrison Access 2 | . . . 1 1 . . . . . . . . . . . . Terminal Hacks 49 | . 5 9 10 5 . . 1 12 1 . 2 3 . 1 . . Record 8 | . . . 2 2 . . 1 1 1 . . 1 . . . . Robot Analysis 2 | . . 1 1 . . . . . . . . . . . . . Prototype ID Bank 8 | . 3 1 . 1 . . . 2 . . . 1 . . . . Open Door 8 | . . . . . . . . 7 . . . . . 1 . . Branch Access Points 1 | . . 1 . . . . . . . . . . . . . . Emergency Access Points 1 | . . . . . . . . . . . 1 . . . . . Terminal Index 1 | . . 1 . . . . . . . . . . . . . . Alert Level 8 | . 1 3 1 1 . . . 1 . . 1 . . . . . Unreport Threat 1 | . . 1 . . . . . . . . . . . . . . Reprogram Traps 1 | . . . . 1 . . . . . . . . . . . . Dispatch Records 2 | . . . 2 . . . . . . . . . . . . . Investigation Status 2 | . . . 1 . . . . . . . . 1 . . . . Recall Investigation 1 | . . . 1 . . . . . . . . . . . . . Registered Components 1 | . 1 . . . . . . . . . . . . . . . Registered Prototypes 1 | . . . 1 . . . . . . . . . . . . . Zone Layout 3 | . . 1 1 . . . . 1 . . . . . . . . Fabricator Hacks 2 | . . . . 2 . . . . . . . . . . . . Network Status 2 | . . . . 2 . . . . . . . . . . . . Repair Station Hacks 3 | . 1 1 . . . . . 1 . . . . . . . . Scan Component 2 | . . 1 . . . . . 1 . . . . . . . . Refit 1 | . 1 . . . . . . . . . . . . . . . Recycling Unit Hacks . | . . . . . . . . . . . . . . . . . Scanalyzer 4 | . . 4 . . . . . . . . . . . . . . Insert Component 2 | . . 2 . . . . . . . . . . . . . . Analyze 2 | . . 2 . . . . . . . . . . . . . . Garrison Access Hacks 2 | . . . 1 1 . . . . . . . . . . . . Seal Access 2 | . . . 1 1 . . . . . . . . . . . . Unauthorized Hacks 3 | . 1 1 . 1 . . . . . . . . . . . . Terminals . | . . . . . . . . . . . . . . . . . Fabricators . | . . . . . . . . . . . . . . . . . Repair Stations . | . . . . . . . . . . . . . . . . . Recycling Units 3 | . 1 1 . 1 . . . . . . . . . . . . Reject 1 | . . 1 . . . . . . . . . . . . . . Tunnel 2 | . 1 . . 1 . . . . . . . . . . . . Scanalyzers . | . . . . . . . . . . . . . . . . . Garrison Access . | . . . . . . . . . . . . . . . . . Data Cores Recovered 1 | . . . . 1 . . . . . . . . . . . . Used . | . . . . . . . . . . . . . . . . . Hacking Detections 46 | . 3 6 3 9 . . 2 14 4 . 2 . . . 2 1 Full Trace Events 5 | . . 1 . 1 . . 1 1 1 . . . . . . . Feedback Events . | . . . . . . . . . . . . . . . . . Feedback Blocked . | . . . . . . . . . . . . . . . . . Robot Schematics Acquired . | . . . . . . . . . . . . . . . . . Robots Built . | . . . . . . . . . . . . . . . . . Authchips . | . . . . . . . . . . . . . . . . . Time . | . . . . . . . . . . . . . . . . . Total Robot Build Rating . | . . . . . . . . . . . . . . . . . Part Schematics Acquired 2 | . . 2 . . . . . . . . . . . . . . Parts Built . | . . . . . . . . . . . . . . . . . Authchips . | . . . . . . . . . . . . . . . . . Time . | . . . . . . . . . . . . . . . . . Total Part Build Rating . | . . . . . . . . . . . . . . . . . Parts Repaired . | . . . . . . . . . . . . . . . . . Time . | . . . . . . . . . . . . . . . . . Parts Recycled . | . . . . . . . . . . . . . . . . . Recycled Matter . | . . . . . . . . . . . . . . . . . Retrieved Matter . | . . . . . . . . . . . . . . . . . Retrieved Components . | . . . . . . . . . . . . . . . . . Parts Scanalyzed 2 | . . 2 . . . . . . . . . . . . . . Part Schematics Acquired 2 | . . 2 . . . . . . . . . . . . . . Parts Damaged . | . . . . . . . . . . . . . . . . . Bothacking | -11 -10 -9 -8 -7 -7 -7 -6 -6 -6 -6 -6 -5 -5 -5 -4 -3 ------------ Run | Yrd Mat Mat Mat Fac Low Low Fac Ext Cet Arc Hub Fac Upp Upp Fac Res Used RIF Installer . | . . . . . . . . . . . . . . . . . Robots Hacked 3 | . 2 1 . . . . . . . . . . . . . . Non-combat 2 | . 1 1 . . . . . . . . . . . . . . Combat 1 | . 1 . . . . . . . . . . . . . . . Robot Hacks Applied 3 | . 2 1 . . . . . . . . . . . . . . parse_system 1 | . 1 . . . . . . . . . . . . . . . no_distress 1 | . . 1 . . . . . . . . . . . . . . find_recycling 1 | . 1 . . . . . . . . . . . . . . . Relay Couplers Released 4 | . . . . 4 . . . . . . . . . . . . Programmers 4 | . . . . 4 . . . . . . . . . . . . Fabnet Peak Effective % . | . . . . . . . . . . . . . . . . . Robots Rewired 9 | . . . . . . . . 5 . . . . 4 . . . Allies Hacked . | . . . . . . . . . . . . . . . . . Hacks Repelled . | . . . . . . . . . . . . . . . . . Allies | -11 -10 -9 -8 -7 -7 -7 -6 -6 -6 -6 -6 -5 -5 -5 -4 -3 -------- Run | Yrd Mat Mat Mat Fac Low Low Fac Ext Cet Arc Hub Fac Upp Upp Fac Res Total Allies 17 | . . . . . . . . 13 . . . . 4 . . . Largest Group 4 | . . . . . . . . 4 1 . . . 4 2 . . Highest-Rated Group 118 | . . . . . . . . 118 20 . . . 116 58 . . Highest-Rated Ally 31 | . . . . . . . . 31 20 . . . 29 29 . . Total Orders 6 | . . . . . . . . . . . . 6 . . . . EXPLORE 2 | . . . . . . . . . . . . 2 . . . . RETURN 4 | . . . . . . . . . . . . 4 . . . . Ally Attacks 78 | . . . . . . . . 46 1 . . . 17 14 . . Total Damage 1431 | . . . . . . . . 1092 . . . . 169 170 . . Kills 12 | . . . . . . . . 6 . . . . 5 1 . . Allies Corrupted 1 | . . . . . . . . 1 . . . . . . . . Allies Melted . | . . . . . . . . . . . . . . . . . Intel | -11 -10 -9 -8 -7 -7 -7 -6 -6 -6 -6 -6 -5 -5 -5 -4 -3 ------- Run | Yrd Mat Mat Mat Fac Low Low Fac Ext Cet Arc Hub Fac Upp Upp Fac Res Active Infowar (turns) 5603 | . 29 592 . 329 323 14 58 . . . . 1544 1041 143 366 1164 Optics 4258 | . . . . . . . . . . . . 1544 1041 143 366 1164 Sensors 629 | . . . . . . . . . . . . . . . . 629 Structural 1345 | . 29 592 . 329 323 14 58 . . . . . . . . . Seismic 1127 | . . . . . . . . . . . . 330 . . 365 432 Robot Analysis Total 2 | . . 1 1 . . . . . . . . . . . . . Derelict Logs Recovered 2 | . . . . . . . . . . . . . 2 . . . Drone Launches 6 | . . . . . . . . . . . . 6 . . . . Drone Recoveries 6 | . . . . . . . . . . . . 6 . . . . Exploration | -11 -10 -9 -8 -7 -7 -7 -6 -6 -6 -6 -6 -5 -5 -5 -4 -3 ------------- Run | Yrd Mat Mat Mat Fac Low Low Fac Ext Cet Arc Hub Fac Upp Upp Fac Res Turns Passed 14531 | 139 1108 1628 923 2112 392 14 603 1956 356 232 700 1654 1041 143 366 1164 Spaces Moved 8346 | 92 617 869 507 1373 291 12 434 1174 169 94 340 758 622 104 274 616 Core 12 | 12 . . . . . . . . . . . . . . . . Treads 814 | . . . . . . . . . 131 94 340 249 . . . . Legs 7520 | 80 617 869 507 1373 291 12 434 1174 38 . . 509 622 104 274 616 Wheels . | . . . . . . . . . . . . . . . . . Hover . | . . . . . . . . . . . . . . . . . Flight . | . . . . . . . . . . . . . . . . . Fastest Speed 50 | 50 120 120 120 122 125 125 125 122 122 160 160 112 112 112 115 112 Average Speed 135 | 113 120 133 120 130 125 125 126 137 154 160 166 158 140 112 115 148 Slowest Speed 240 | 120 120 190 122 193 125 125 127 196 193 160 240 240 186 114 115 188 Overloaded Moves . | . . . . . . . . . . . . . . . . . Propulsion Burnouts . | . . . . . . . . . . . . . . . . . Robots Hopped . | . . . . . . . . . . . . . . . . . Potential Cave-ins 11 | . . . 3 . . . . 8 . . . . . . . . Cave-ins Triggered . | . . . . . . . . . . . . . . . . . Exploration Rate (%) 37 | 4 66 62 46 34 50 5 11 72 64 77 20 19 81 11 7 11 Regions Visited 16 Branch Regions 8 Pre-discovered Areas 2 | . 1 . . 1 . . . . . . . . . . . . Known Exits Taken 1 | . . . . . . . . . . . 1 . . . . . Unknown Exits Taken 15 | 1 1 1 1 1 1 1 1 1 1 1 . 1 1 1 1 . Scrap Searched 5 | . . . . . 2 . . . . . . . 3 . . . Spaces Dug 43 | . . . 10 1 . . . 11 . . 2 2 . . 2 15 Terrain Destroyed 497 | . 49 45 30 29 5 . 2 13 2 1 170 41 27 . 34 49 Melee 3 | . . . . . . . . . . . . . . . 2 1 Projectile 153 | . . . 21 6 5 . 2 13 2 1 9 41 2 . 3 48 AOE 341 | . 49 45 9 23 . . . . . . 161 . 25 . 29 . Terrain Rammed . | . . . . . . . . . . . . . . . . . Walls Destroyed . | . . . . . . . . . . . . . . . . . Machines Disabled . | . . . . . . . . . . . . . . . . . Actions | -11 -10 -9 -8 -7 -7 -7 -6 -6 -6 -6 -6 -5 -5 -5 -4 -3 --------- Run | Yrd Mat Mat Mat Fac Low Low Fac Ext Cet Arc Hub Fac Upp Upp Fac Res Total 10402 | 110 832 1172 693 1585 299 11 471 1415 221 147 422 1074 752 128 309 761 Wait 859 | . 73 146 86 70 . . 6 104 10 35 44 194 19 12 9 51 Move 8330 | 91 616 868 506 1372 290 11 433 1173 168 93 339 757 621 103 273 616 Hop . | . . . . . . . . . . . . . . . . . Pick Up 77 | 3 16 12 5 13 . . 4 2 1 1 2 6 3 3 2 4 Fast Attach 77 | 7 2 3 3 9 . . 7 5 5 1 2 20 1 2 1 9 Attach 44 | . 4 6 5 5 1 . 2 . . 1 4 4 3 . 2 7 Detach 7 | 1 . 1 . . . . . . 1 . . . . . . 4 Swap 125 | . 20 23 11 20 . . 2 16 2 1 3 11 3 2 5 6 Drop 152 | 1 17 24 10 29 . . 9 17 6 2 4 14 1 5 6 7 Fire 591 | 7 82 88 67 62 8 . 7 69 28 13 24 67 17 1 8 43 Melee 22 | . 2 1 . . . . 1 . . . . 1 1 . 2 14 Ram . | . . . . . . . . . . . . . . . . . Kick 2 | . . . . 1 . . . 1 . . . . . . . . Crush . | . . . . . . . . . . . . . . . . . Escape Stasis 10 | . . . . 4 . . . 6 . . . . . . . . Rewire 106 | . . . . . . . . 22 . . . . 83 . 1 . Trap . | . . . . . . . . . . . . . . . . . Miscellaneous . | . . . . . . . . . . . . . . . . . Route ------- -11/Scrapyard -10/Materials (discovered 3 exits: *Mat x2 / [*Min]) -9/Materials (discovered 2 exits: *Mat / *Min) -8/Materials (discovered 2 exits: *Fac x2) -7/Factory (discovered 3 exits: *Fac / [*Sto] / [*Low]) -7/Lower Caves -7/Lower Caves -6/Factory (discovered 2 exits: *Low / *Ext) -6/Extension (discovered 2 exits: *Fac / *Cet) -6/Cetus -6/Archives (discovered 2 exits: *Fac / *Hub) -6/Hub_04(d) -5/Factory (discovered 2 exits: *Fac / [*Upp]) -5/Upper Caves -5/Upper Caves -4/Factory -3/Research History --------- Turn | Location | Event 6 | -11/Scrapyard | Discovered new exit (range 15) 140 | -11/Scrapyard | Entered Materials 316 | -10/Materials | Build established: Mutant 520 | -10/Materials | Discovered new exit (range 16) 656 | -10/Materials | Discovered new exit (range 6) 987 | -10/Materials | Discovered new exit (range 12) 1161 | -10/Materials | Core integrity fell below 50% 1248 | -10/Materials | Entered another Materials area 1248 | -9/Materials | Evolved 2 slots: Propulsion x1, Utility x1 1406 | -9/Materials | Build established: Scavenger-Mutant 1757 | -9/Materials | Discovered new exit (range 15) 2526 | -9/Materials | Identified exit to Mines 2526 | -9/Materials | Discovered new exit (range 17) 2783 | -9/Materials | Build established: Mutant 2876 | -9/Materials | Entered another Materials area 2876 | -8/Materials | Evolved 2 slots: Propulsion x1, Weapon x1 3402 | -8/Materials | Discovered new exit (range 3) 3656 | -8/Materials | Discovered new exit (range 8) 3799 | -8/Materials | Entered Factory 3799 | -7/Factory | Evolved 2 slots: Utility x2 3860 | -7/Factory | Build established: Gunner 5589 | -7/Factory | Discovered new exit (range 16) 5755 | -7/Factory | Discovered new exit (range 15) 5879 | -7/Factory | Discovered new exit (range 15) 5911 | -7/Factory | Entered Lower Caves 5920 | -7/Lower Caves | Attracted the attention of an 0b10 checkpoint 6093 | -7/Lower Caves | Encountered a Warlord checkpoint 6286 | -7/Lower Caves | Build established: Scavenger-Gunner 6293 | -7/Lower Caves | Discovered new exit (range 7) 6303 | -7/Lower Caves | Entered another Lower Caves area 6311 | -7/Lower Caves | Discovered new exit (range 5) 6317 | -7/Lower Caves | Entered Factory 6317 | -6/Factory | Evolved 2 slots: Propulsion x1, Weapon x1 6644 | -6/Factory | Discovered new exit (range 6) 6656 | -6/Factory | Build established: Gunner 6675 | -6/Factory | Identified exit to Lower Caves 6738 | -6/Factory | Discovered new exit (range 16) 6920 | -6/Factory | Entered Extension 7025 | -6/Extension | Rescued a captive Derelict 7027 | -6/Extension | Build established: Tank 7057 | -6/Extension | Rescued a captive Derelict 7114 | -6/Extension | Rescued a captive Derelict 7171 | -6/Extension | Rescued a captive Derelict 7172 | -6/Extension | Rescued a captive Derelict 7290 | -6/Extension | Lost 3 allies 7341 | -6/Extension | Rescued a captive Derelict 7745 | -6/Extension | Build established: Scavenger-Tank 8161 | -6/Extension | Rescued a captive Derelict 8213 | -6/Extension | Rescued a captive Derelict 8710 | -6/Extension | Build established: Tank 8826 | -6/Extension | Discovered new exit (range 10) 8827 | -6/Extension | Discovered new exit (range 6) 8876 | -6/Extension | Entered Cetus 8876 | -6/Cetus | Accompanied by 1 ally 8892 | -6/Cetus | Spotted Cetus Guard 8892 | -6/Cetus | Spotted Cetus Guard 8896 | -6/Cetus | Spotted Cetus Guard 8896 | -6/Cetus | Destroyed Cetus Guard 8897 | -6/Cetus | Spotted Cetus Guard 8900 | -6/Cetus | Destroyed Cetus Guard 8917 | -6/Cetus | Destroyed Cetus Guard 8933 | -6/Cetus | Destroyed Cetus Guard 8961 | -6/Cetus | Lost 3 parts (2n1w) 9153 | -6/Cetus | Discovered new exit (range 15) 9192 | -6/Cetus | Spotted Cetus Guard 9232 | -6/Cetus | Entered Archives 9259 | -6/Archives | Build established: Scavenger-Tank 9409 | -6/Archives | Discovered new exit (range 14) 9423 | -6/Archives | Unable to access archive contents 9439 | -6/Archives | Discovered new exit (range 14) 9464 | -6/Archives | Entered Hub_04(d) 9855 | -6/Hub_04(d) | Discovered new exit (range 11) 9913 | -6/Hub_04(d) | Identified exit to Factory 10103 | -6/Hub_04(d) | Network Hub disabled 10164 | -6/Hub_04(d) | Entered Factory 10164 | -5/Factory | Evolved 2 slots: Utility x2 10773 | -5/Factory | Build established: Scavenger-Gunner 11098 | -5/Factory | Lost 5 parts (1n3u1w) 11724 | -5/Factory | Discovered new exit (range 12) 11795 | -5/Factory | Discovered new exit (range 12) 11818 | -5/Factory | Entered Upper Caves 11951 | -5/Upper Caves | Attracted the attention of an 0b10 checkpoint 12130 | -5/Upper Caves | Spotted B-75 Beast 12206 | -5/Upper Caves | Destroyed B-75 Beast 12475 | -5/Upper Caves | Discovered new exit (range 22) 12500 | -5/Upper Caves | Learned Factory trap positions 12554 | -5/Upper Caves | Attacked by a delusional Derelict stockpiling Unaware 12639 | -5/Upper Caves | Build established: Tank 12740 | -5/Upper Caves | Learned Factory trap positions 12859 | -5/Upper Caves | Entered another Upper Caves area 12859 | -5/Upper Caves | Accompanied by 2 allies 12898 | -5/Upper Caves | Encountered a Warlord checkpoint 12973 | -5/Upper Caves | Lost 3 allies 12985 | -5/Upper Caves | Build established: Scavenger-Tank 12987 | -5/Upper Caves | Discovered new exit (range 6) 13002 | -5/Upper Caves | Entered Factory 13002 | -4/Factory | Evolved 2 slots: Propulsion x1, Utility x1 13003 | -4/Factory | Loaded intel: 69 trap records 13284 | -4/Factory | Discovered new exit (range 21) 13341 | -4/Factory | Spotted B-86 Titan 13368 | -4/Factory | Entered Research 13368 | -3/Research | Evolved 2 slots: Power x1, Propulsion x1 13569 | -3/Research | Found Prototype Device 13569 | -3/Research | Identified Exp. Thermal Defense Suite 14287 | -3/Research | System corruption reached 10% 14532 | -3/Research | Self-destructed Last Messages --------------- 14507_ Prototyping Station disabled. 14508_ Adv. Sensor Array destroyed. 14514_ P-80 Master knocked back. 14514_ Slug penetrates Wall. 14514_ U-05 Engineer builds a Wall. 14514_ U-05 Engineer builds a Door. 14517_ Slug penetrates Wall. 14518_ U-05 Engineer builds a Wall. 14521_ Gamma Rifle destroyed. 14522_ U-05 Engineer builds a Wall. 14523_ Flexi-carbon Leg destroyed. 14526_ Lyr. Medium Armor Plating destroyed. 14527_ Carbon-fiber Leg destroyed. 14528_ System corrupted: Heat flow error (+252). 14528_ U-05 Engineer builds a Wall. 14529_ Slug penetrates Wall. 14530_ Power failure, Neutrino Core shutdown. 14530_ Power failure, Mic. Antimatter Reactor shutdown. 14532_ Arm. Leg destroyed. Map ----- +----------------------------------------------------+ | ?????????????????????????????????????????????????? | | ?????????????????????????????????????????????????? | | ?????????????????????????????????????????????????? | | ?????????????????????????????????????????????????? | | ?????????????????????????????????????????????????? | | ?????????????????????????????????????????????????? | | ?????????????????????????????????????????????????? | | ?????????????????????????????????????????????????? | | ?????????????????????????????????????????????????? | | ?????????????????????????????????????????????????? | | ?????????????????????????????????????????????????? | | ?????????????????????????????????????????????????? | | ?????????????????????????????????????????????????? | | ?????????????????????????????????????????????????? | | ?????????????????????????????????????????????????? | | ?????????????????????????????????????????????????? | | ?????????????????????????????????????????????????? | | ?????????????????????????????????????????????????? | | ????????????????????????###??????????????????????? | | ????????????????????????# #???????#??????????????? | | ????????????????????????# #??#### ###?? S"??????? | | ???????????????????######;#? + "????????? | | ???????????????????# # #????????????? | | ???????????????????# ! # #????????????? | | ???????????????????#] p +????????????? | | ?????? ????????????# @; k#####?????????????? | | ## #????????????# =p#u #??????????????? | | #????????????# !%=u " +??????????????? | | #?????????###########+### #??????????????? | | #?????????# " ?? ## ##??????????????? | | ########### " ??? !"# #???????????????? | | #####??# ## # ??? ## #???????????????? | | #???# ## # ???? ## #????+#?????????? | | #???# ##"###+## ???? ## ##### #?????????? | | " #???# ##??????## #?????????? | | #???# #?######## #?????????? | | #???# #?# ##### #???? | | #???# """ #?# #???? | | #???# """" #?# ##########???? | | #???# """" ### #????????????? | | ####???# """" ### #????????????? | | ???????# """" ### """ #????????????? | | ???##### """ ####?????????? | | ##?# # """ ########??? | | #?# " # #??? | | !#?# ### # #??? | | =#?## ######+############ # = #??? | | #### #?# #??????###+#### + #??? | | !+ #?# #??????? ?# # ! #??? | | !# ####?# " #????? ## # #??? | +----------------------------------------------------+ Best States ------------- Heat Dissipation 81 Energy Generation 39 Energy Capacity 405 Matter Stores 300 Matter Capacity 300 Sight Range 22 Robot Scan Range 16 Terrain Scan Density 10 Armor Coverage 600 Resistance: KI 20 Resistance: TH 30 Phase Shifting 5 Evasion (%) 67 Targeting Accuracy 8 Target Analysis 8 Recoil Reduction 4 Particle Charging 20 Item Schematics ----------------- Med. Storage Unit | -9/Materials | Scanalyzed Adv. Beam Cannon | -9/Materials | Scanalyzed Robot Schematics ------------------ None Fabricated ------------ Nothing Repaired ---------- Nothing Alien Tech Used ----------------- None Achievements -------------- Quick And Dirty Challenges ------------ None Game ------ Seed LightningMetafiberMaul Manual? 0 Play Time 03:00:03 Cumulative 54.7 hours Start 2025.05.29 @ 18:34:50 End 2025.07.31 @ 20:17:00 Sessions 9 Manual Loads 0 Difficulty Rogue Special Mode None Game No. 49 Rogue 47 Adventurer 2 Explorer 0 Win Type - Total 0 Types 0/0/0/0/0/0/0/0/0/0 Lore% 47 Gallery% 38 Achievement% 36 Wizard Run 0 Options --------- Layout 1 ASCII 0 Keyboard 0 Movement Mouse Keybinds 0 Fullscreen 0 Font 16/Smallcaps Map View 50x35 Zoom Use 0% Tactical HUD 1 Map Filters NONE Filters NONE Steam 1 RUN: d865d2a6-21e6-4916-81d8-5f89cc5a45b8